[Event "4th Nikity Blitz 2024"]
[Site "Niteroi"]
[Date "2024.08.31"]
[Round "6.4"]
[White "Do Valle Cardoso, Lucas"]
[Black "Porto, Cristiano Nogueira"]
[Result "1-0"]
[ECO "C13"]
[WhiteElo "2365"]
[BlackElo "2217"]
[Annotator "RC"]
[PlyCount "133"]
[EventDate "2024.08.28"]
[EventType "swiss"]
[EventCountry "BRA"]
[SourceTitle "playchess.com"]
[Source "ChessBase"]
[SourceQuality "1"]
[TimeControl "180+2"]

1. e4 {[%emt 0:00:01]} e6 {[%emt 0:00:03]} 2. d4 {[%emt 0:00:01]} d5 {[%emt 0:00:01]} 3. Nc3 {[%emt 0:00:01]} Nf6 {[%emt 0:00:01]} 4. Bg5 {[%emt 0:00:02]} dxe4 {[%emt 0:00:03]} 5. Nxe4 {[%emt 0:00:01]} Be7 {[%emt 0:00:02]} 6. Bxf6 {[%emt 0:00:01]} Bxf6 {[%emt 0:00:00]} 7. Nf3 {[%emt 0:00:01]} Nd7 {[%emt 0:00:01]} 8. Bd3 {[%emt 0:00:02]} O-O {[%emt 0:00:07]} 9. Qe2 {[%emt 0:00:02]} c5 {[%emt 0:00:12]} 10. Nxf6+ {[%emt 0:00:23]} Nxf6 {[%emt 0:00:11]} 11. O-O-O {[%emt 0:00:05]} cxd4 {[%emt 0:00:04]} 12. Nxd4 {[%emt 0:00:03]} Qa5 {[%emt 0:00:06]} 13. Kb1 {[%emt 0:00:01]} Bd7 {[%emt 0:00:15]} 14. h4 {[%emt 0:00:09]} Rac8 {[%emt 0:00:02]} 15. g4 {[%emt 0:00:03]} Bc6 {[%emt 0:00:21]} 16. Rhg1 {[%emt 0:00:28]} Rfd8 {[%emt 0:00:24]} 17. g5 {[%emt 0:00:13]} Ne8 {[%emt 0:00:24]} 18. Nxc6 {[%emt 0:00:42]} Rxc6 {[%emt 0:00:05]} 19. h5 {[%emt 0:00:00]} Rcd6 {[%emt 0:00:15]} 20. g6 {[%emt 0:00:07]} fxg6 {[%emt 0:00:08]} 21. hxg6 {[%emt 0:00:01]} h6 {[%emt 0:00:01]} 22. a3 {[%emt 0:00:14]} Nf6 {[%emt 0:00:09]} 23. Bc4 {[%emt 0:00:07]} Nd5 {[%emt 0:00:28]} 24. Bxd5 {[%emt 0:00:38]} exd5 {[%emt 0:00:05]} 25. Qe7 {[%emt 0:00:02]} R6d7 {[%emt 0:00:08]} 26. Qe6+ {[%emt 0:00:01]} Kh8 {[%emt 0:00:02]} 27. Qe5 {[%emt 0:00:07]} Qb6 {[%emt 0:00:05]} 28. Rde1 {[%emt 0:00:06]} Qf6 {[%emt 0:00:09]} 29. Qe8+ {[%emt 0:00:11]} Qf8 {[%emt 0:00:01]} 30. Qe5 {[%emt 0:00:01]} Qf6 {[%emt 0:00:01]} 31. Qh5 {[%emt 0:00:05]} Rf8 {[%emt 0:00:03]} 32. Re5 {[%emt 0:00:03]} Re7 {[%emt 0:00:01]} 33. Rge1 {[%emt 0:00:01]} Rxe5 {[%emt 0:00:01]} 34. Rxe5 {[%emt 0:00:01]} Kg8 {[%emt 0:00:00]} 35. Rxd5 {[%emt 0:00:01]} Qxf2 {[%emt 0:00:01]} 36. Rd3 {[%emt 0:00:05]} Qf1+ {[%emt 0:00:00]} 37. Ka2 {[%emt 0:00:01]} Qf6 {[%emt 0:00:02]} 38. Qd5+ {[%emt 0:00:01]} Kh8 {[%emt 0:00:01]} 39. Rg3 {[%emt 0:00:01]} b6 {[%emt 0:00:01]} 40. a4 {[%emt 0:00:02]} Re8 {[%emt 0:00:01]} 41. b3 {[%emt 0:00:02]} Qe6 {[%emt 0:00:02]} 42. Qd3 {[%emt 0:00:03]} Kg8 {[%emt 0:00:02]} 43. Rf3 {[%emt 0:00:02]} Qe4 {[%emt 0:00:08]} 44. Qxe4 {[%emt 0:00:04]} Rxe4 {[%emt 0:00:00]} 45. Rc3 {[%emt 0:00:02]} Kf8 {[%emt 0:00:03]} 46. Rc7 {[%emt 0:00:02]} Re7 {[%emt 0:00:01]} 47. Rc8+ {[%emt 0:00:06]} Re8 48. Rc6 {[%emt 0:00:00]} Re7 {[%emt 0:00:03]} 49. a5 {[%emt 0:00:00]} Ke8 {[%emt 0:00:01]} 50. axb6 axb6 {[%emt 0:00:00]} 51. Rxb6 {[%emt 0:00:00]} Kd8 {[%emt 0:00:01]} 52. Rb8+ {[%emt 0:00:01]} Kd7 {[%emt 0:00:01]} 53. b4 {[%emt 0:00:01]} h5 {[%emt 0:00:01]} 54. Rh8 {[%emt 0:00:02]} Re5 {[%emt 0:00:02]} 55. Rh7 {[%emt 0:00:02]} Ke6 {[%emt 0:00:02]} 56. Rxg7 {[%emt 0:00:01]} Kf6 {[%emt 0:00:01]} 57. Rg8 {[%emt 0:00:01]} h4 {[%emt 0:00:02]} 58. Rh8 {[%emt 0:00:03]} Re4 {[%emt 0:00:00]} 59. Kb3 {[%emt 0:00:01]} Kxg6 {[%emt 0:00:01]} 60. b5 {[%emt 0:00:00]} Kg5 {[%emt 0:00:01]} 61. c4 {[%emt 0:00:00]} Re1 {[%emt 0:00:08]} 62. c5 {[%emt 0:00:00]} Rb1+ {[%emt 0:00:02]} 63. Kc4 {[%emt 0:00:00]} Rc1+ {[%emt 0:00:00]} 64. Kb4 {[%emt 0:00:00]} Rb1+ {[%emt 0:00:01]} 65. Ka5 {[%emt 0:00:00]} Ra1+ {[%emt 0:00:01]} 66. Kb6 {[%emt 0:00:00]} Rf1 {[%emt 0:00:04]} 67. c6 {[%emt 0:00:00]} 1-0

[Event "4th Nikity Blitz 2024"]
[Site "Niteroi"]
[Date "2024.08.31"]
[Round "6.5"]
[White "Laba, Otavio De Souza"]
[Black "Di Berardino, Diego Rafael"]
[Result "0-1"]
[ECO "E60"]
[WhiteElo "1918"]
[BlackElo "2472"]
[Annotator "TA"]
[PlyCount "77"]
[EventDate "2024.08.28"]
[EventType "swiss"]
[EventCountry "BRA"]
[SourceTitle "playchess.com"]
[Source "ChessBase"]
[SourceQuality "1"]
[TimeControl "180+2"]

{[%evp 9,77,49,53,42,50,50,73,8,18,-10,0,5,16,14,27,20,21,0,-12,0,0,-113,-124,-125,-131,-126,-124,-122,-116,-142,-137,-125,-129,-139,-137,-176,-181,-181,-187,-191,-94,-223,-197,-288,-278,-235,-238,-217,-231,-238,-238,-212,-190,-187,-189,-261,-147,-416,-335,-1208,-1191,-29968,-29968,-29972,-29973,-29986,-29987,-29987,-29988,-29988]} 1. d4 {[%emt 0:00:02][%cal Bd2d4,Bd4d5][%mdl 32]} Nf6 {[%emt 0:00:01]} 2. c4 {[%emt 0:00:01]} g6 {[%emt 0:00:05]} 3. h4 {[%emt 0:00:01]} c5 {[%emt 0:00:08]} 4. d5 {[%emt 0:00:01]} h6 {[%emt 0:00:11]} 5. Nc3 {[%emt 0:00:02]} d6 {[%emt 0:00:01]} 6. e4 {[%emt 0:00:02]} Bg7 {[%emt 0:00:02]} 7. Be2 {[%emt 0:00:01]} e6 {[%emt 0:00:03]} 8. Be3 {[%emt 0:00:04]} (8. h5 $16) 8... exd5 $11 {[%emt 0:00:02]} 9. cxd5 {[%emt 0:00:06]} a6 {[%emt 0:00:07]} 10. a4 {[%emt 0:00:02]} O-O {[%emt 0:00:03]} 11. Qd2 {[%emt 0:00:01]} h5 {[%emt 0:00:03]} 12. Bg5 {[%emt 0:00:17]} Re8 {[%emt 0:00:04]} 13. Nh3 {[%emt 0:00:25]} Bxh3 {[%emt 0:00:09]} 14. Rxh3 {[%emt 0:00:01]} Nbd7 {[%emt 0:00:01]} 15. g4 {[%emt 0:00:07]} hxg4 $17 {[%emt 0:00:07]} 16. Bxg4 {[%emt 0:00:06] [#]} Nxe4 $1 {[%emt 0:00:02]} 17. Bxd8 {[%emt 0:00:12]} Nxd2+ {[%emt 0:00:01]} 18. Kxd2 {[%emt 0:00:02]} Raxd8 {[%emt 0:00:02]} 19. h5 {[%emt 0:00:14]} f5 {[%emt 0:00:42]} 20. Be2 {[%emt 0:00:14]} Bh6+ {[%emt 0:00:02]} 21. Kc2 {[%emt 0:00:09]} g5 {[%emt 0:00:01]} 22. Rg1 {[%emt 0:00:02]} Kh8 {[%emt 0:00:06]} 23. Bd3 {[%emt 0:00:05]} Rf8 {[%emt 0:00:24]} 24. Rf3 {[%emt 0:00:03]} f4 {[%emt 0:00:11]} (24... c4 $19 {and Black stays clearly on top.} 25. Be2 (25. Bxf5 $2 {too greedy.} Ne5 $19) 25... g4) 25. Ne4 {[%emt 0:00:00]} (25. Rh3 $17 {is a better defense.}) 25... Ne5 $19 {[%emt 0:00:01]} 26. Rh3 {[%emt 0:00:24]} (26. Be2 $142) 26... g4 {[%emt 0:00:01]} 27. Rh4 {[%emt 0:00:08] [#]} g3 {[%emt 0:00:39][%mdl 512]} 28. fxg3 {[%emt 0:00:10]} Nf3 {[%emt 0:00:02][%csl LRg1,LRh4]} 29. Rhh1 {[%emt 0:00:10]} Nxg1 {[%emt 0:00:01]} 30. Rxg1 {[%emt 0:00:01]} f3 {[%emt 0:00:02]} 31. Rf1 {[%emt 0:00:15]} Be3 {[%emt 0:00:04]} 32. g4 {[%emt 0:00:08]} (32. Re1 $142 Bd4 33. Rf1) 32... Rf4 {[%emt 0:00:03]} (32... f2 $19 {Threatens to win with ...Rf4.} 33. Ng3 Rf4) 33. Nf2 $2 {[%emt 0:00:12][%mdl 8192] Now White is beyond hope.} (33. Ng5 $17) 33... Rg8 {[%emt 0:00:20][%cal Oe3f2] aiming for ...Bxf2!} ({Don't take} 33... Rxa4 34. Nd1 Bg5 35. Rxf3) 34. Bf5 $2 {[%emt 0:00:14]} (34. Bg6) 34... Bxf2 {[%emt 0:00:01]} (34... Rxa4 $2 35. Ne4 f2 36. Kd3 $19) 35. Rxf2 {[%emt 0:00:01] [#]} Rxf5 $1 {[%emt 0:00:01][%mdl 512] Black mates.} 36. gxf5 {[%emt 0:00:02]} Rg2 {[%emt 0:00:01]} 37. Rxg2 {[%emt 0:00:03]} fxg2 {[%emt 0:00:01]} 38. f6 {[%emt 0:00:01]} g1=Q {[%emt 0:00:23]} 39. Kd2 {[%emt 0:00:11] Weighted Error Value: White=0.77/Black=0.13 (very precise) .  Loses game:     	White=1     	---        Mistake:       	White=6     	Black=2      Inaccurate:     	White=3     	---        OK:         	White=10    	Black=13     Best:        	White=1     	Black=6} 0-1

[Event "4th Nikity Blitz 2024"]
[Site "Niteroi"]
[Date "2024.08.31"]
[Round "7.1"]
[White "Santiago, Yago De Moura"]
[Black "Do Valle Cardoso, Lucas"]
[Result "1/2-1/2"]
[ECO "D25"]
[WhiteElo "2455"]
[BlackElo "2365"]
[Annotator "RC"]
[PlyCount "84"]
[EventDate "2024.08.28"]
[EventType "swiss"]
[EventCountry "BRA"]
[SourceTitle "playchess.com"]
[Source "ChessBase"]
[SourceQuality "1"]
[TimeControl "180+2"]

1. d4 {[%emt 0:00:02]} d5 {[%emt 0:00:00]} 2. c4 {[%emt 0:00:01]} dxc4 {[%emt 0:00:03]} 3. Nf3 {[%emt 0:00:01]} Nf6 {[%emt 0:00:01]} 4. e3 {[%emt 0:00:02]} b5 {[%emt 0:00:01]} 5. a4 {[%emt 0:00:01]} b4 {[%emt 0:00:00]} 6. Bxc4 {[%emt 0:00:01]} e6 {[%emt 0:00:01]} 7. O-O {[%emt 0:00:03]} Be7 {[%emt 0:00:00]} 8. Qe2 {[%emt 0:00:02]} O-O {[%emt 0:00:02]} 9. Rd1 {[%emt 0:00:25]} Bb7 {[%emt 0:00:01]} 10. a5 {[%emt 0:00:17]} a6 {[%emt 0:00:01]} 11. Nbd2 {[%emt 0:00:01]} Nbd7 {[%emt 0:00:00]} 12. Nb3 {[%emt 0:00:02]} c5 {[%emt 0:00:01]} 13. Ne5 {[%emt 0:00:03]} Qc7 {[%emt 0:00:02]} 14. Nxd7 {[%emt 0:00:18]} Nxd7 {[%emt 0:00:01]} 15. e4 {[%emt 0:00:04]} cxd4 {[%emt 0:00:11]} 16. Nxd4 {[%emt 0:00:02]} Nc5 {[%emt 0:00:07]} 17. f3 {[%emt 0:00:08]} Rfd8 {[%emt 0:00:03]} 18. Be3 {[%emt 0:00:01]} Bd6 {[%emt 0:00:04]} 19. g3 {[%emt 0:00:06]} Be5 {[%emt 0:00:05]} 20. Nb3 {[%emt 0:00:35]} Nxb3 {[%emt 0:00:02]} 21. Bxb3 {[%emt 0:00:01]} Rxd1+ {[%emt 0:00:03]} 22. Qxd1 {[%emt 0:00:09]} Rd8 {[%emt 0:00:04]} 23. Qe2 {[%emt 0:00:01]} Bd4 {[%emt 0:00:08]} 24. Kg2 {[%emt 0:00:35]} h6 {[%emt 0:00:16]} 25. Bf4 {[%emt 0:00:02]} Be5 {[%emt 0:00:12]} 26. Be3 {[%emt 0:00:01]} Bd4 {[%emt 0:00:13]} 27. Bf4 {[%emt 0:00:01]} Qc5 {[%emt 0:00:01]} 28. Rc1 {[%emt 0:00:09]} Qe7 {[%emt 0:00:00]} 29. h4 {[%emt 0:00:26]} e5 {[%emt 0:00:19]} 30. Be3 {[%emt 0:00:01]} Bxe3 {[%emt 0:00:01]} 31. Qxe3 {[%emt 0:00:00]} Rd4 {[%emt 0:00:02]} 32. Rc4 {[%emt 0:00:15]} Rxc4 {[%emt 0:00:10]} 33. Bxc4 {[%emt 0:00:12]} Qc7 34. Qb3 {[%emt 0:00:00]} Qe7 {[%emt 0:00:11]} 35. Qd3 {[%emt 0:00:00]} Qc7 {[%emt 0:00:15]} 36. Bxa6 {[%emt 0:00:01]} Bxa6 {[%emt 0:00:01]} 37. Qxa6 {[%emt 0:00:01]} Qc2+ {[%emt 0:00:03]} 38. Kh3 {[%emt 0:00:01]} Qxb2 {[%emt 0:00:02]} 39. Qc8+ {[%emt 0:00:00]} Kh7 {[%emt 0:00:01]} 40. Qf5+ {[%emt 0:00:01]} Kg8 {[%emt 0:00:02]} 41. Qc8+ {[%emt 0:00:02]} Kh7 {[%emt 0:00:00]} 42. Qf5+ {[%emt 0:00:01]} Kg8 1/2-1/2

[Event "4th Nikity Blitz 2024"]
[Site "Niteroi"]
[Date "2024.08.31"]
[Round "7.2"]
[White "Rangel, Daniel"]
[Black "Mekhitarian, Krikor Sevag"]
[Result "1/2-1/2"]
[ECO "A01"]
[WhiteElo "2198"]
[BlackElo "2560"]
[Annotator "TA"]
[PlyCount "42"]
[EventDate "2024.08.28"]
[EventType "swiss"]
[EventCountry "BRA"]
[SourceTitle "playchess.com"]
[Source "ChessBase"]
[SourceQuality "1"]
[TimeControl "180+2"]

{[%evp 9,42,0,9,-18,-15,-17,-7,0,0,-23,-32,-76,-58,-142,-78,-102,0,0,0,0,0,0,23,21,18,33,35,35,42,30,32,34,39,19,7]} 1. b3 {[%emt 0:00:01]} e5 {[%emt 0:00:02]} 2. Bb2 {[%emt 0:00:02]} Nc6 {[%emt 0:00:01]} 3. Nf3 {[%emt 0:00:01]} d6 {[%emt 0:00:04]} 4. e4 {[%emt 0:00:04]} f5 {[%emt 0:00:01]} 5. Nc3 {[%emt 0:00:12]} Nf6 {[%emt 0:00:01]} 6. d3 {[%emt 0:00:20][%cal Bd2d3,Bd3d4][%mdl 32]} g6 {[%emt 0:00:08]} 7. g3 {[%emt 0:00:16]} Bg7 {[%emt 0:00:03]} 8. Bg2 {[%emt 0:00:01]} O-O {[%emt 0:00:02]} 9. O-O {[%emt 0:00:10]} f4 {[%emt 0:00:15]} 10. d4 {[%emt 0:00:07]} Bg4 {[%emt 0:00:03]} 11. Nb5 {[%emt 0:01:01]} (11. d5 $15 Nd4 12. Qd3) 11... a6 {[%emt 0:00:05]} ({Black should try} 11... Nxe4 {Threatens to win with ...fxg3.} 12. dxe5 Kh8 (12... dxe5 13. h3 $15)) 12. dxe5 $17 {[%emt 0:00:06]} Nh5 {[%emt 0:00:36]} ({Much weaker is} 12... Nxe4 $6 13. Nxc7 (13. Qd5+ Kh8 $16) 13... Qxc7 14. Qd5+ Kh8 15. Qxe4 $15) (12... axb5 $17 13. exf6 Bxf6) 13. Qd5+ $11 {[%emt 0:00:23]} Kh8 {[%emt 0:00:00]} 14. Nbd4 {[%emt 0:00:12]} Nxe5 {[%emt 0:00:22]} 15. Nxe5 {[%emt 0:00:04]} dxe5 {[%emt 0:00:04]} 16. Qxd8 {[%emt 0:00:05]} Raxd8 {[%emt 0:00:07]} 17. Nf3 {[%emt 0:00:01]} fxg3 {[%emt 0:00:59]} 18. fxg3 {[%emt 0:00:01]} Rfe8 {[%emt 0:00:03]} 19. Rad1 {[%emt 0:00:05]} Rxd1 {[%emt 0:00:08]} 20. Rxd1 {[%emt 0:00:01]} Nf6 {[%emt 0:00:02]} 21. Re1 {[%emt 0:00:04]} (21. Bxe5 $2 {loses.} Bxf3 (21... Nxe4 22. Bxc7 $14) 22. Bxf3 Rxe5 $19) 21... Nd7 {[%emt 0:00:07] Weighted Error Value: White=0.15 (very precise) /Black=0.18 (very precise) .  Mistake:       	White=1     	Black=2      Inaccurate:     	White=1     	---        OK:         	White=4     	Black=9      Best:        	White=2     	---} 1/2-1/2

[Event "4th Nikity Blitz 2024"]
[Site "Niteroi"]
[Date "2024.08.31"]
[Round "7.3"]
[White "Di Berardino, Diego Rafael"]
[Black "Perdomo, Leandro"]
[Result "1-0"]
[ECO "A26"]
[WhiteElo "2472"]
[BlackElo "2359"]
[Annotator "TA"]
[PlyCount "40"]
[EventDate "2024.08.28"]
[EventType "swiss"]
[EventCountry "BRA"]
[SourceTitle "playchess.com"]
[Source "ChessBase"]
[SourceQuality "1"]
[TimeControl "180+2"]

{[%evp 14,40,23,22,16,18,16,8,8,7,21,19,25,0,0,6,0,-8,8,-1,0,0,8,0,2,-16,12,13,17]} 1. c4 {[%emt 0:00:02]} g6 {[%emt 0:00:00]} 2. Nc3 {[%emt 0:00:01]} Bg7 {[%emt 0:00:01]} 3. g3 {[%emt 0:00:01]} e5 {[%emt 0:00:02]} 4. Bg2 {[%emt 0:00:01]} Nc6 {[%emt 0:00:01]} 5. d3 {[%emt 0:00:01]} d6 {[%emt 0:00:00]} 6. e4 {[%emt 0:00:02]} Be6 {[%emt 0:00:01]} 7. Nge2 {[%emt 0:00:03]} Qd7 {[%emt 0:00:01]} 8. O-O {[%emt 0:00:06]} Bh3 {[%emt 0:00:03]} 9. Nd5 {[%emt 0:00:04] [#] Black must now prevent Bxh3.} Bxg2 {[%emt 0:00:08]} 10. Kxg2 {[%emt 0:00:02]} Nce7 {[%emt 0:00:01]} 11. Be3 {[%emt 0:00:22]} c6 {[%emt 0:00:02]} 12. Ndc3 {[%emt 0:00:12]} Nf6 {[%emt 0:00:21]} 13. h3 {[%emt 0:00:11]} d5 {[%emt 0:00:05] [#] Hoping for ...d4. The position is equal.} 14. cxd5 {[%emt 0:00:10]} cxd5 {[%emt 0:00:01] White should prevent ...d4.} 15. Bc5 {[%emt 0:00:08]} d4 {[%emt 0:00:27]} 16. Nb1 {[%emt 0:00:07]} (16. Bxe7 {simplifies} Qxe7 17. Qa4+ Qd7 18. Qxd7+ Kxd7 19. Nb5) 16... O-O {[%emt 0:00:09]} 17. Nd2 {[%emt 0:00:01]} Rfc8 {[%emt 0:00:02]} 18. Rc1 {[%emt 0:00:19]} Bh6 {[%emt 0:00:11]} 19. f4 {[%emt 0:00:12]} exf4 {[%emt 0:00:34]} 20. Nxf4 {[%emt 0:00:30]} Nc6 {[%emt 0:00:47][%mdl 32768] Not much happened in this game.   Weighted Error Value: White=0.04 (flawless) /Black=0.07 (flawless) .  Inaccurate:     	---       	Black=1      OK:         	White=3     	Black=3     . Loss on time!?} 1-0

[Event "4th Nikity Blitz 2024"]
[Site "Niteroi"]
[Date "2024.08.31"]
[Round "7.4"]
[White "Aranha Filho, Alvaro Z."]
[Black "Pires, Marcos Vinicius Tors"]
[Result "0-1"]
[ECO "D11"]
[WhiteElo "2196"]
[BlackElo "2212"]
[Annotator "RC"]
[PlyCount "91"]
[EventDate "2024.08.28"]
[EventType "swiss"]
[EventCountry "BRA"]
[SourceTitle "playchess.com"]
[Source "ChessBase"]
[SourceQuality "1"]
[TimeControl "180+2"]

1. d4 {[%emt 0:00:01]} d5 {[%emt 0:00:01]} 2. c4 {[%emt 0:00:02]} c6 {[%emt 0:00:02]} 3. Nf3 {[%emt 0:00:01]} Nf6 {[%emt 0:00:02]} 4. Qc2 {[%emt 0:00:01]} dxc4 {[%emt 0:00:04]} 5. e4 {[%emt 0:00:01]} b5 {[%emt 0:00:20]} 6. b3 {[%emt 0:00:02]} cxb3 {[%emt 0:00:04]} 7. axb3 {[%emt 0:00:01]} e6 {[%emt 0:00:09]} 8. Bd3 {[%emt 0:00:02]} Bb7 {[%emt 0:00:10]} 9. O-O {[%emt 0:00:05]} Nbd7 {[%emt 0:00:02]} 10. Rd1 {[%emt 0:00:04]} Be7 {[%emt 0:00:13]} 11. Bg5 {[%emt 0:00:03]} h6 {[%emt 0:00:04]} 12. Bh4 {[%emt 0:00:12]} a6 {[%emt 0:00:02]} 13. Qe2 {[%emt 0:00:10]} Nh5 {[%emt 0:00:13]} 14. Bxe7 {[%emt 0:00:09]} Qxe7 {[%emt 0:00:01]} 15. Bc2 {[%emt 0:00:21]} Nhf6 {[%emt 0:00:17]} 16. Nc3 {[%emt 0:00:37]} e5 {[%emt 0:00:13]} 17. d5 {[%emt 0:01:44]} cxd5 {[%emt 0:00:26]} 18. Nxd5 {[%emt 0:00:00]} Nxd5 {[%emt 0:00:08]} 19. exd5 {[%emt 0:00:00]} O-O {[%emt 0:00:10]} 20. Nd4 {[%emt 0:00:00]} Qg5 {[%emt 0:00:26]} 21. Nc6 {[%emt 0:00:00]} Rfe8 {[%emt 0:00:21]} 22. b4 {[%emt 0:00:00]} Nf6 {[%emt 0:00:01]} 23. Bb3 {[%emt 0:00:00]} Nh5 {[%emt 0:00:07]} 24. Na5 {[%emt 0:00:00]} Nf4 {[%emt 0:00:05]} 25. Qf3 {[%emt 0:00:00]} Bc8 {[%emt 0:00:06]} 26. Re1 {[%emt 0:00:09]} Bg4 {[%emt 0:00:02]} 27. Qg3 {[%emt 0:00:01]} Ne2+ {[%emt 0:00:03]} 28. Rxe2 {[%emt 0:00:01]} Bxe2 {[%emt 0:00:01]} 29. Qxg5 {[%emt 0:00:07]} hxg5 {[%emt 0:00:01]} 30. Re1 {[%emt 0:00:02]} Bc4 {[%emt 0:00:01]} 31. Bxc4 {[%emt 0:00:02]} bxc4 {[%emt 0:00:01]} 32. Nxc4 {[%emt 0:00:01]} Rab8 {[%emt 0:00:00]} 33. d6 {[%emt 0:00:02]} f6 {[%emt 0:00:02]} 34. Na5 {[%emt 0:00:09]} Rxb4 {[%emt 0:00:04]} 35. d7 {[%emt 0:00:00]} Rd8 {[%emt 0:00:01]} 36. Nc6 {[%emt 0:00:00]} Rbb8 {[%emt 0:00:08]} 37. Nxb8 {[%emt 0:00:00]} Rxb8 {[%emt 0:00:01]} 38. Rc1 {[%emt 0:00:00]} Kf7 {[%emt 0:00:02]} 39. g4 {[%emt 0:00:02]} Rd8 {[%emt 0:00:00]} 40. Rc7 {[%emt 0:00:01]} Ke7 {[%emt 0:00:01]} 41. Ra7 {[%emt 0:00:01]} Rxd7 {[%emt 0:00:01]} 42. Rxa6 {[%emt 0:00:01]} Rd6 {[%emt 0:00:01]} 43. Ra7+ {[%emt 0:00:01]} Rd7 {[%emt 0:00:01]} 44. Ra6 {[%emt 0:00:01]} Kf7 {[%emt 0:00:01]} 45. Kg2 {[%emt 0:00:01]} Kg6 {[%emt 0:00:00]} 46. h3 {[%emt 0:00:00]} 0-1

[Event "4th Nikity Blitz 2024"]
[Site "Niteroi"]
[Date "2024.08.31"]
[Round "7.5"]
[White "Filgueiras, Nathan Felipe"]
[Black "Souza, Iago Henrique da Sil"]
[Result "1-0"]
[ECO "B12"]
[WhiteElo "2316"]
[BlackElo "2036"]
[Annotator "RC"]
[PlyCount "63"]
[EventDate "2024.08.28"]
[EventType "swiss"]
[EventCountry "BRA"]
[SourceTitle "playchess.com"]
[Source "ChessBase"]
[SourceQuality "1"]
[TimeControl "180+2"]

1. e4 {[%emt 0:00:03]} c6 {[%emt 0:00:01]} 2. d4 {[%emt 0:00:01]} d5 {[%emt 0:00:00]} 3. e5 {[%emt 0:00:00]} Bf5 {[%emt 0:00:03]} 4. h4 {[%emt 0:00:02]} h5 {[%emt 0:00:02]} 5. Bd3 {[%emt 0:00:01]} Bxd3 {[%emt 0:00:02]} 6. Qxd3 {[%emt 0:00:02]} e6 {[%emt 0:00:01]} 7. Nf3 {[%emt 0:00:02]} Qb6 {[%emt 0:00:04]} 8. O-O {[%emt 0:00:05]} Qa6 {[%emt 0:00:04]} 9. Qb3 {[%emt 0:00:12]} c5 {[%emt 0:00:06]} 10. dxc5 {[%emt 0:00:02]} Bxc5 {[%emt 0:00:04]} 11. Be3 {[%emt 0:00:13]} Nd7 {[%emt 0:00:35]} 12. Nbd2 {[%emt 0:00:11]} Ne7 {[%emt 0:00:07]} 13. c4 {[%emt 0:00:08]} Rc8 {[%emt 0:00:07]} 14. Rac1 {[%emt 0:00:04]} O-O {[%emt 0:00:11]} 15. Bxc5 {[%emt 0:00:12]} Rxc5 {[%emt 0:00:08]} 16. Qe3 {[%emt 0:00:10]} dxc4 {[%emt 0:00:14]} 17. Qg5 {[%emt 0:00:02]} Nf5 {[%emt 0:00:15]} 18. Ne4 {[%emt 0:00:10]} Rd5 {[%emt 0:00:11]} 19. Rfd1 {[%emt 0:00:31]} Nxe5 {[%emt 0:00:09]} 20. Nf6+ {[%emt 0:00:09]} Kh8 {[%emt 0:00:05]} 21. Qxh5+ {[%emt 0:00:06]} Nh6 {[%emt 0:00:02]} 22. Nxd5 {[%emt 0:00:04]} Nxf3+ {[%emt 0:00:05]} 23. Qxf3 {[%emt 0:00:03]} exd5 {[%emt 0:00:01]} 24. a3 {[%emt 0:00:05]} Qb6 {[%emt 0:00:14]} 25. Rd2 {[%emt 0:00:11]} Rd8 {[%emt 0:00:19]} 26. Qf4 {[%emt 0:00:05]} Rd6 {[%emt 0:00:19]} 27. Rxc4 {[%emt 0:00:06]} Rf6 {[%emt 0:00:05]} 28. Rc8+ {[%emt 0:00:03]} Kh7 {[%emt 0:00:01]} 29. Qe3 {[%emt 0:00:02]} Qd6 {[%emt 0:00:09]} 30. Qd3+ {[%emt 0:00:03]} g6 {[%emt 0:00:04]} 31. Qxd5 {[%emt 0:00:04]} Qf4 {[%emt 0:00:05]} 32. Qd8 {[%emt 0:00:06]} 1-0

[Event "4th Nikity Blitz 2024"]
[Site "Niteroi"]
[Date "2024.08.31"]
[Round "8.1"]
[White "Di Berardino, Diego Rafael"]
[Black "Santiago, Yago De Moura"]
[Result "0-1"]
[ECO "D20"]
[WhiteElo "2472"]
[BlackElo "2455"]
[Annotator "TA"]
[PlyCount "36"]
[EventDate "2024.08.28"]
[EventType "swiss"]
[EventCountry "BRA"]
[SourceTitle "playchess.com"]
[Source "ChessBase"]
[SourceQuality "1"]
[TimeControl "180+2"]

{[%evp 9,36,27,61,24,86,100,82,18,23,0,0,-3,12,-21,-32,-31,-32,-80,-71,-107,-105,-156,-152,-158,-149,-256,-223,-429,-425]} 1. d4 {[%emt 0:00:02]} d5 {[%emt 0:00:00]} 2. c4 {[%emt 0:00:01]} dxc4 {[%emt 0:00:02]} 3. e3 {[%emt 0:00:03]} c5 {[%emt 0:00:01]} 4. Bxc4 {[%emt 0:00:03]} cxd4 {[%emt 0:00:01]} 5. exd4 {[%emt 0:00:11]} g6 {[%emt 0:00:02]} 6. Nf3 {[%emt 0:00:13] Hoping for Nc3.} Bg7 {[%emt 0:00:01]} (6... Nf6 $11) 7. Qb3 $16 {[%emt 0:00:02]} e6 {[%emt 0:00:22][%cal Og8e7] [#]} 8. O-O {[%emt 0:01:18]} (8. d5 $1 $16) 8... Nf6 $11 {[%emt 0:00:02]} 9. Nc3 {[%emt 0:00:07] d5 is the strong threat.} O-O {[%emt 0:00:02]} 10. Bg5 {[%emt 0:00:04]} h6 {[%emt 0:00:02]} 11. Bh4 {[%emt 0:00:01]} Nc6 {[%emt 0:00:01]} 12. Qd1 {[%emt 0:00:34]} b6 {[%emt 0:00:29]} 13. a3 {[%emt 0:00:17]} (13. Qd2 $15) 13... Bb7 $17 {[%emt 0:00:04]} 14. Ba2 {[%emt 0:00:08] [#]} Ne7 $1 {[%emt 0:00:05]} 15. Ne5 {[%emt 0:00:04]} ({White should try} 15. Bxf6 Bxf6 16. Rc1) 15... Nf5 $1 {[%emt 0:00:05][%csl LRd4,LRh4]} 16. Bxf6 {[%emt 0:00:08]} Bxf6 {[%emt 0:00:02]} 17. Ne2 {[%emt 0:00:07]} (17. Re1 $17 {might work better.}) 17... Nxd4 {[%emt 0:00:17]} 18. Nxd4 $2 {[%emt 0:00:03]} (18. Ng4 Nxe2+ 19. Qxe2) 18... Bxe5 {[%emt 0:00:02] Weighted Error Value: White=0.50/Black=0.16 (very precise) .  Mistake:       	White=5     	Black=1      Inaccurate:     	White=2     	---        OK:         	White=1     	Black=6      Best:        	White=1     	Black=2      Strong:       	---       	Black=1} 0-1